Cogmind - Beta 12 @@@ ROGUE MODE // 2023.07.29 @ 16:42:59 Player: TheGreatBorealis Result: Destroyed by D-53 Grenadier with Mini Grenade Launcher Performance ------------- Evolutions (0) 0 Regions Visited (2) 400 Robots Destroyed (18) 90 Value Destroyed (267) 267 Prototype IDs (0) 0 Alien Tech Used (0) 0 Bonus (0) 0 TOTAL SCORE: 757 Bonus ------- None Cogmind --------- Core Integrity 0/250 Matter 300/300 Energy 98/100 System Corruption 0% Temperature Cool (0) Movement Rolling (200) Ox8 Location -10/Mines Parts ------- > --- POWER (1) -------- (None) > --- PROPULSION (2) --- Wheel > --- UTILITY (2) ------ Huge Storage Unit > --- WEAPON (2) ------- Light Assault Rifle > --- INVENTORY (25) --- Light Ion Engine Aluminum Leg Aluminum Leg Aluminum Leg Aluminum Leg Wheel Medium Storage Unit Large Storage Unit High-capacity Battery (250) Sensor Array Targeting Computer Targeting Computer Targeting Computer Targeting Computer Weapon Shielding Beam Cannon Beam Cannon Assault Rifle Assault Rifle Light Assault Rifle Peak State ------------ > --- POWER ------------ Light Ion Engine > --- PROPULSION ------- Wheel Compact Wheel > --- UTILITY ---------- Large Storage Unit Light Armor Plating > --- WEAPON ----------- Light Assault Rifle Light Assault Rifle > --- INVENTORY -------- Light Treads Light Treads Aluminum Leg Aluminum Leg Wheel Small Storage Unit Sensor Array Weapon Shielding Beam Cannon Assault Rifle [Rating: 8] Favorites ----------- Power Light Ion Engine Engine Light Ion Engine Propulsion Compact Wheel Treads Light Treads Leg Aluminum Leg Wheel Compact Wheel Utility Light Armor Plating Storage Huge Storage Unit Protection Light Armor Plating Weapon Light Assault Rifle Ballistic Gun Light Assault Rifle Special Weapon Mining Laser Build | -11 -10 -10 ------- Run | Jun Mat Min Slots Evolved . | . . . Power . | . . . Propulsion . | . . . Utility . | . . . Weapon . | . . . Parts Attached 11 | . 11 . Power 2 | . 2 . Engine 2 | . 2 . Core . | . . . Reactor . | . . . Propulsion 3 | . 3 . Treads 1 | . 1 . Leg . | . . . Wheel 2 | . 2 . Hover . | . . . Flight . | . . . Utility 3 | . 3 . Device . | . . . Storage 2 | . 2 . Processor . | . . . Hackware . | . . . Protection 1 | . 1 . Artifact . | . . . Weapon 3 | . 3 . Energy Gun . | . . . Energy Cannon . | . . . Ballistic Gun 2 | . 2 . Ballistic Cannon . | . . . Launcher . | . . . Special Weapon 1 | . 1 . Impact Weapon . | . . . Slashing Weapon . | . . . Piercing Weapon . | . . . Special Melee Weapon . | . . . Unidentified Prototypes . | . . . Parts Lost 6 | . 3 3 Power 2 | . 1 1 Propulsion 1 | . . 1 Utility 1 | . 1 . Weapon 2 | . 1 1 Highest Loss Streak 3 | . 2 3 To Critical Strikes . | . . . Average Slot Usage (%) 95 | . 96 83 Engine 13 | . 13 12 Leg 5 | . 5 . Wheel 23 | . 22 28 Storage 14 | . 14 14 Protection 10 | . 11 . Ballistic Gun 25 | . 24 28 Special Weapon 2 | . 3 . Naked Turns . | . . . Heaviest Build 88 | 10 88 87 Greatest Support 26 | 20 26 26 Greatest Overweight (x) 3 | . 3 3 Average Overweight (x) 1 | . 1 3 Largest Inventory Capacity 25 | 8 25 25 Average Capacity 18 | 8 18 25 Most Carried 21 | 6 21 20 Average Carried 13 | 6 12 20 Final Capacity 25 | 8 25 25 Final Carried 20 | 6 20 20 Class Distribution -------------------- 100% | Mutant Dominant Class ---------------- Mutant | -10/Materials Mutant | -10/Mines Resources | -11 -10 -10 ----------- Run | Jun Mat Min Matter Collected 408 | 204 204 . Remotely . | . . . Salvage Created 666 | 91 575 . Parts 33 | 2 31 . Haulers Intercepted 2 | . 2 . Recyclers Shooed 3 | . 3 . Parts Field Recycled . | . . . Retrieved Matter . | . . . Parts Self-Destructed . | . . . Prevented . | . . . Kills | -11 -10 -10 ------- Run | Jun Mat Min Combat Hostiles Destroyed 11 | . 11 . Guns 11 | . 11 . Classes Destroyed 5 | 1 4 . Worker 2 | . 2 . Hauler 2 | . 2 . Recycler 3 | 1 2 . Swarmer 6 | . 6 . Grunt 5 | . 5 . Best Kill Streak 5 | 1 5 . Combat Bots Only 5 | . 5 . Max Kills in Single Turn 2 | 1 2 . Gunslinging . | . . . Exploded . | . . . Melee . | . . . Uniques/NPCs Destroyed . | . . . Combat | -11 -10 -10 -------- Run | Jun Mat Min Damage Taken 838 | . 450 388 Core 251 | . 79 172 Absorbed by Shields . | . . . Core Remaining (%) 100 | 100 . . Volleys Fired 62 | 2 56 4 Largest 2 | 2 2 2 Hottest 100 | 40 100 40 Shots Fired 119 | 4 107 8 Gun 114 | 4 102 8 Cannon . | . . . Launcher . | . . . Special 5 | . 5 . Kinetic 114 | 4 102 8 Thermal 5 | . 5 . Explosive . | . . . Electromagnetic . | . . . Robot Hit Streak 11 | 4 11 6 Robot Miss Streak 3 | . 3 2 Penetration Max . | . . . Secondary Targets . | . . . Shots Hit Robots 83 | 4 73 6 Core Hits 37 | 3 34 . Critical Kills 1 | . 1 . Critical Parts Destroyed . | . . . Critical Strikes 1 | . 1 . Destroy 1 | . 1 . Melee Attacks . | . . . Impact . | . . . Slashing . | . . . Piercing . | . . . Sneak Attacks . | . . . Combat Hostiles . | . . . Follow-up Attacks . | . . . Damage Inflicted 675 | 29 602 44 Guns 675 | 29 602 44 Cannons . | . . . Explosions . | . . . Melee . | . . . Ramming . | . . . Kinetic 675 | 29 602 44 Thermal . | . . . Explosive . | . . . Electromagnetic . | . . . Impact . | . . . Slashing . | . . . Piercing . | . . . Highest Corruption . | . . . Average Corruption . | . . . Corruption Purged . | . . . Corruption Blocked . | . . . Overload Shots . | . . . Overflow Damage . | . . . Projectiles . | . . . Explosions . | . . . Melee . | . . . Knockbacks . | . . . Impact . | . . . Kinetic . | . . . Secondary . | . . . Self-Inflicted Damage . | . . . Shots . | . . . Rammed . | . . . Targets Rammed . | . . . Kicked . | . . . Crushed . | . . . Highest Temperature 77 | . 77 . Average Temperature 20 | . 20 . Received Heat Transfer 180 | . 180 . Siege Activations . | . . . Robots Corrupted . | . . . Combat Hostiles . | . . . Parts Fried . | . . . Impact Corruptions . | . . . Robots Melted . | . . . Combat Hostiles . | . . . Parts Melted . | . . . Heat Transferred . | . . . Parts Sabotaged . | . . . Parts Stolen . | . . . Parts Stripped . | . . . Power Chain Reactions . | . . . Missiles Intercepted . | . . . Alert | -11 -10 -10 ------- Run | Jun Mat Min Peak Influence 130 | 5 130 39 Initial 39 | . 3 39 Average 66 | 4 70 38 Maximum Alert Level . | . . . Low Security (%) 100 | 100 100 100 Level 1 . | . . . Level 2 . | . . . Level 3 . | . . . Level 4 . | . . . Level 5 . | . . . High Security . | . . . Max Security . | . . . Squads Dispatched 1 | . 1 . Investigation 1 | . 1 . Extermination . | . . . Reinforcement . | . . . Assault . | . . . Garrison . | . . . Intercept . | . . . Searches Triggered . | . . . Construction Impeded . | . . . Haulers Reinforced . | . . . Active Scanning Responses . | . . . Cargo Convoy Interrupts . | . . . Stealth | -11 -10 -10 --------- Run | Jun Mat Min Distress Signals . | . . . Communications Jammed . | . . . Distress Signals . | . . . Times Spotted 25 | . 23 2 Peak Tracking Total 4 | . 4 2 Tactical Retreats 1 | . 1 . Traps | -11 -10 -10 ------- Run | Jun Mat Min Traps Triggered 1 | . 1 . Indirectly . | . . . Trap Hack Attempts . | . . . Triggered . | . . . Disarmed . | . . . Reprogrammed . | . . . Reused . | . . . Traps Extracted . | . . . Installed . | . . . Triggered . | . . . Machines | -11 -10 -10 ---------- Run | Jun Mat Min Machines Disabled . | . . . Max in Single Turn . | . . . Machines Repaired . | . . . Machines Sabotaged . | . . . Overloaded Fab Kills . | . . . Hacking | -11 -10 -10 --------- Run | Jun Mat Min Machines Accessed 6 | . 6 . Terminals 6 | . 6 . Fabricators . | . . . Repair Stations . | . . . Recycling Units . | . . . Scanalyzers . | . . . Garrison Access . | . . . Total Hacks 14 | . 14 . Successful 5 | . 5 . Failed 9 | . 9 . Catastrophic 1 | . 1 . Database Lockouts . | . . . Manual 8 | . 8 . Terminals 14 | . 14 . Fabricators . | . . . Repair Stations . | . . . Recycling Units . | . . . Scanalyzers . | . . . Garrison Access . | . . . Terminal Hacks 5 | . 5 . Alert Level 1 | . 1 . Locate Traps 1 | . 1 . Patrol Status 1 | . 1 . Hauler Manifests 1 | . 1 . Registered Components 1 | . 1 . Fabricator Hacks . | . . . Repair Station Hacks . | . . . Recycling Unit Hacks . | . . . Scanalyzer . | . . . Garrison Access Hacks . | . . . Unauthorized Hacks . | . . . Terminals . | . . . Fabricators . | . . . Repair Stations . | . . . Recycling Units . | . . . Scanalyzers . | . . . Garrison Access . | . . . Data Cores Recovered . | . . . Used . | . . . Hacking Detections 4 | . 4 . Full Trace Events . | . . . Feedback Events . | . . . Feedback Blocked . | . . . Robot Schematics Acquired . | . . . Robots Built . | . . . Authchips . | . . . Time . | . . . Total Robot Build Rating . | . . . Part Schematics Acquired . | . . . Parts Built . | . . . Authchips . | . . . Time . | . . . Total Part Build Rating . | . . . Parts Repaired . | . . . Time . | . . . Parts Recycled . | . . . Recycled Matter . | . . . Retrieved Matter . | . . . Retrieved Components . | . . . Parts Scanalyzed . | . . . Part Schematics Acquired . | . . . Parts Damaged . | . . . Bothacking | -11 -10 -10 ------------ Run | Jun Mat Min Used RIF Installer . | . . . Robots Hacked . | . . . Non-combat . | . . . Combat . | . . . Robot Hacks Applied . | . . . Relay Couplers Released . | . . . Fabnet Peak Effective % . | . . . Robots Rewired . | . . . Allies Hacked . | . . . Hacks Repelled . | . . . Allies | -11 -10 -10 -------- Run | Jun Mat Min Total Allies . | . . . Largest Group . | . . . Highest-Rated Group . | . . . Highest-Rated Ally . | . . . Total Orders . | . . . Ally Attacks . | . . . Total Damage . | . . . Kills . | . . . Allies Corrupted . | . . . Allies Melted . | . . . Intel | -11 -10 -10 ------- Run | Jun Mat Min Robot Analysis Total . | . . . Derelict Logs Recovered . | . . . Drone Launches . | . . . Drone Recoveries . | . . . Exploration | -11 -10 -10 ------------- Run | Jun Mat Min Turns Passed 1279 | 23 1173 83 Spaces Moved 858 | 15 788 55 Core . | . . . Treads . | . . . Legs 136 | 15 121 . Wheels 722 | . 667 55 Hover . | . . . Flight . | . . . Fastest Speed 105 | 120 105 135 Average Speed 121 | 120 120 135 Slowest Speed 135 | 120 135 135 Overloaded Moves . | . . . Propulsion Burnouts . | . . . Robots Hopped . | . . . Cave-ins Triggered . | . . . Exploration Rate (%) 40 | 2 98 22 Regions Visited 2 Branch Regions 1 Pre-discovered Areas . | . . . Known Exits Taken . | . . . Unknown Exits Taken 2 | 1 1 . Scrap Searched . | . . . Spaces Dug 5 | . 5 . Terrain Destroyed 5 | . 5 . Melee . | . . . Projectile 5 | . 5 . AOE . | . . . Terrain Rammed . | . . . Walls Destroyed . | . . . Machines Disabled . | . . . Actions | -11 -10 -10 --------- Run | Jun Mat Min Total 986 | 16 911 59 Wait 37 | . 37 . Move 856 | 14 787 55 Hop . | . . . Pick Up 16 | . 16 . Fast Attach 1 | . 1 . Attach 2 | . 2 . Detach . | . . . Swap 8 | . 8 . Drop 4 | . 4 . Fire 62 | 2 56 4 Melee . | . . . Ram . | . . . Kick . | . . . Crush . | . . . Escape Stasis . | . . . Rewire . | . . . Trap . | . . . Miscellaneous . | . . . Route ------- -11/Junkyard -10/Materials (discovered 5 exits: [*Mat x3] / [*Min x2]) -10/Mines History --------- Turn | Location | Event 7 | -11/Junkyard | Discovered new exit (range 3) 24 | -11/Junkyard | Entered Materials 109 | -10/Materials | Discovered new exit (range 15) 307 | -10/Materials | Build established: Mutant 421 | -10/Materials | Discovered new exit (range 13) 568 | -10/Materials | Discovered new exit (range 16) 848 | -10/Materials | Discovered new exit (range 4) 998 | -10/Materials | Discovered new exit (range 14) 1197 | -10/Materials | Entered Mines 1246 | -10/Mines | Assembled infested the area 1277 | -10/Mines | Core integrity fell below 50% 1279 | -10/Mines | Core integrity fell below 20% 1280 | -10/Mines | Destroyed by D-53 Grenadier with Mini Grenade Launcher Last Messages --------------- 01182_ Acquired Med. Storage Unit. 01182_ R-06 Scavenger collects Power Shielding. 01183_ Dropped Sml. Storage Unit. 01183_ K-01 Serf collects debris. LOCATION=UNKNOWN GOAL=ESCAPE Something is scanning the area. 01205_ T-07 Excavator is excavating. 01246_ ALERT: Infestation in the mines, dispatching Demolisher response squad. 01253_ K-01 Serf collects debris. 01272_ C-30 ARC bursts open, deploying its payload. 01272_ D-53 Grenadier unfolds itself. 01278_ Ion Engine destroyed. 01278_ U-05 Engineer lays Concrete. 01279_ The unstable cave ceiling collapses. 01279_ U-05 Engineer lays Concrete. 01280_ Destroyed Shock Absorption System. 01280_ Lgt. Assault Rifle destroyed. 01280_ Com. Wheel destroyed. Map ----- +----------------------------------------------------+ | ?????????????????????????????????????????????????? | | ?????????????????????????????????????????????????? | | ?????????????????????????????????????????????????? | | ?????????????????????????????????????????????????? | | ?????????????????????????????????????????????????? | | ?????????????????????????????????????????????????? | | ?????????????????????????????????????????????????? | | ?????????????????????????????????????????????????? | | ?????????????????????????????????????????????????? | | ?????????????????????????????????????????????????? | | ?????????????????????????????????????????????????? | | ?????????????????????????????????????????????????? | | ?????????????????????????????????????????????????? | | ???????????????????#?????????????????????????????? | | ????????????????#### ????????????????????????????? | | ????????????????? ????????????????????????????? | | ?????????????????? #?#####?????????????????????? | | ??????????????????# a ## #?????????????????????? | | ??????????????????# ?????????????????????? | | ??????????????????# ?????????????????????? | | ???????????????????# ##????????????????????? | | ????? ??????????????# ##???????????????????? | | ????? ??????????????# ##??????????????????? | | ????? ??????????????# #??????????????????? | | ????? ??????????????## #??????????????????? | | ????? #?????????????# @ #??????????????????? | | ##### #?????????????# #??????????????????? | | #?????????????# #??????????????????? | | #?????????????##dd ##??????????????????? | | #?# #???????????### u # ##???????????????????? | | #??# #??????????## %##?###????????????????????? | | ##??# #????????### ##????????????????????????? | | #???# #???###### ##???????????????????????? | | ????# #??## ## ##??????????????????????? | | ##### #?## ##?????????????????????? | | #?# ##????????????????????? | | ##### ### #### ##???????????????????? | | ???## ## ##??### ######??????????????? | | ??## ## #?????## #???????????? | | ??# #### ##??????## #??????????? | | ?# #??#####????????? ???????? | | # #????????????????? ????????? | | # #????????????????? ###????????? | | ## ## #?????????????????? ##??????????? | | ?###?## ?????????????????? ## ##???????????? | | ??????## #?????????????????? ##??##????????????? | | ???????## #??????????????????##?????????????????? | | ?????????###?????????????????????????????????????? | | ?????????????????????????????????????????????????? | | ?????????????????????????????????????????????????? | +----------------------------------------------------+ Best States ------------- Heat Dissipation 25 Energy Generation 10 Energy Capacity 250 Matter Stores 300 Matter Capacity 300 Sight Range 16 Terrain Scan Density 10 Armor Coverage 150 Evasion (%) 55 Item Schematics ----------------- None Robot Schematics ------------------ None Fabricated ------------ Nothing Alien Tech Used ----------------- None Achievements -------------- None Challenges ------------ None Game ------ Seed ThermalModifiedInsulator Manual? 0 Play Time 00:10:15 Cumulative 125.8 hours Start 2023.07.29 @ 16:31:38 End 2023.07.29 @ 16:42:59 Sessions 1 Manual Loads 0 Difficulty Rogue Special Mode None Game No. 207 Rogue 207 Adventurer 0 Explorer 0 Win Type - Total 0 Types 0/0/0/0/0/0/0/0/0 Lore% 56 Gallery% 60 Achievement% 46 Wizard Run 0 Options --------- ASCII 0 Keyboard 1 Movement Numpad Keybinds 0 Fullscreen 1 Font 18/SmallcapsGlow Map View 76x50 Tactical HUD 1 Map Filters NONE Filters NONE Steam 1 RUN: 75ed4a5f-d0d5-45bb-a5e8-490d87e6223f